fUSD/lending_fUSD_20240615
["ID","MTS","AMOUNT","RATE_DAILY","PERIOD"]
[329561967,1718436667216,-411.88168131,0.00022465,3]
[329561968,1718436667238,-91.91831869,0.00022465,3]
[329561969,1718436667251,-685.0,0.00022465,3]
[329561970,1718436667272,-500.0,0.00022465,3]
[329561971,1718436667287,-2511.61,0.00022465,3]
[329561972,1718436667305,-500.0,0.00022465,3]
[329561973,1718436667317,-655.35,0.00022465,3]
[329561974,1718436667350,-500.0,0.00022465,3]
[329561975,1718436667362,-500.0,0.00022465,3]
[329561976,1718436667380,-500.0,0.00022465,3]
[329561977,1718436667427,-1322.77,0.00022465,3]
[329561978,1718436667452,-500.0,0.00022465,3]
[329561979,1718436667463,-499.32599442,0.00022465,3]
[329561980,1718436667484,-0.67400558,0.00022465,3]
[329561981,1718436667495,-500.0,0.00022465,3]
[329561982,1718436667507,-500.0,0.00022465,3]
[329561983,1718436667522,-618.07,0.00022465,3]
[329561984,1718436667536,-500.0,0.00022465,3]
[329561985,1718436667556,-805.15,0.00022465,3]
[329561986,1718436667577,-1347.64925311,0.00022465,3]
[329561987,1718436667600,-44.23074689,0.00022465,3]
[329561988,1718436667621,-500.0,0.00022465,3]
[329561989,1718436667635,-119.80873408,0.00022465,3]
[329561990,1718436668185,-408.52126592,0.00022465,3]
[329561991,1718436668206,-539.04823912,0.00022465,3]
[329561992,1718436668227,-859.62176088,0.00022465,3]
[329561993,1718436668240,-500.0,0.00022465,3]
[329561994,1718436668258,-500.0,0.00022465,3]
[329561995,1718436668275,-1382.27,0.00022465,3]
[329561996,1718436668294,-500.0,0.00022465,3]
[329561997,1718436668321,-500.0,0.00022465,3]
[329561998,1718436668362,-460.77417971,0.00022465,3]
[329561999,1718436668434,-1935.58000013,0.00022465,3]
[329562000,1718436668449,-718.91582016,0.00022465,3]
[329562001,1718436668488,-481.30670223,0.00022465,3]
[329562002,1718436670088,-250.0,0.00021388,2]
[329562003,1718436670100,-500.0,0.00021917,2]
[329562004,1718436670113,-151.0,0.00022191,7]
[329562005,1718436670124,-500.0,0.00022191,3]
[329562006,1718436670136,-151.0,0.000223,7]
[329562007,1718436670154,-18.69329777,0.00022465,3]
[329562008,1718436670180,-500.0,0.00022465,3]
[329562009,1718436670196,-742.02,0.00022465,3]
[329562010,1718436670215,-500.0,0.00022465,3]
[329562011,1718436670395,-500.0,0.00022465,3]
[329562012,1718436670409,-500.0,0.00022465,3]
[329562013,1718436670460,-476.20670465,0.00022465,3]
[329562014,1718436670615,-188.08329535,0.00022465,3]
[329562015,1718436670674,-556.15,0.00022465,3]
[329562016,1718436670696,-500.0,0.00022465,3]
[329562017,1718436670723,-443.30065871,0.00022465,3]
[329562018,1718436670751,-500.0,0.00022465,3]
[329562019,1718436670779,-500.0,0.00022465,3]
[329562020,1718436670798,-500.0,0.00022465,3]
[329562021,1718436670837,-182.62595578,0.00022465,3]
[329562022,1718436671757,-500.0,0.00021917,2]
[329562023,1718436671769,-500.0,0.00021917,2]
[329562024,1718436671793,-500.0,0.00022191,3]
[329562025,1718436671817,-500.0,0.00022191,3]
[329562026,1718436671829,-334.61404422,0.00022465,3]
[329562027,1718436671841,-500.0,0.00022465,3]
[329562028,1718436671852,-500.0,0.00022465,3]
[329562029,1718436671884,-615.95,0.00022465,3]
[329562030,1718436671896,-500.0,0.00022465,3]
[329562031,1718436671906,-500.0,0.00022465,3]
[329562032,1718436671917,-982.39,0.00022465,3]
[329562033,1718436671927,-580.98621876,0.00022465,3]
[329562034,1718436671943,-500.0,0.00022465,3]
[329562035,1718436671953,-500.0,0.00022465,3]
[329562036,1718436671967,-500.0,0.00022465,3]
[329562037,1718436671980,-500.0,0.00022465,3]
[329562038,1718436671995,-500.0,0.00022465,3]
[329562039,1718436672010,-500.0,0.00022465,3]
[329562040,1718436672023,-500.0,0.00022465,3]
[329562041,1718436672034,-500.0,0.00022465,3]
[329562042,1718436672046,-500.0,0.00022465,3]
[329562043,1718436672059,-537.24,0.00022465,3]
[329562044,1718436672077,-552.55,0.00022465,3]
[329562045,1718436672091,-500.0,0.00022465,3]
[329562046,1718436672104,-500.0,0.00022465,3]
[329562047,1718436672121,-1089.65,0.00022465,3]
[329562048,1718436672146,-509.18,0.00022465,3]
[329562049,1718436672157,-500.0,0.00022465,3]
[329562050,1718436672169,-151.0,0.00022465,7]
[329562051,1718436672180,-150.32777,0.0002251,2]
[329562052,1718436672191,-547.41,0.00022542,2]
[329562053,1718436672202,-200.0,0.00022555,2]
[329562054,1718436672213,-500.0,0.00022555,2]
[329562055,1718436672224,-200.0,0.00022555,2]
[329562056,1718436672235,-537.32895972,0.00022567,2]
[329562057,1718436672246,-10.95782702,0.000226,2]
[329562058,1718436672261,-1112.483,0.000226,2]
[329562059,1718436672304,-3006.13319538,0.000226,2]
[329562060,1718436672554,-500.0,0.00022465,3]
[329562061,1718436672572,-162.70634916,0.00022465,3]
[329562062,1718436672592,-337.29365084,0.00022465,3]
[329562063,1718436672607,-52.43634841,0.000226,2]
[329562064,1718436672731,-1039.51346452,0.000226,2]
[329562065,1718436672745,-296.35800856,0.000226,2]
[329562066,1718436673421,-1749.91574108,0.000226,2]
[329562067,1718436673442,-2146.36865003,0.000226,2]
[329562068,1718436673496,-169.68753784,0.00022639,2]
[329562069,1718436673514,-3084.19609706,0.00022697,2]
[329562070,1718436673587,-715.83643561,0.00022697,2]
[329562071,1718436673598,-510.0,0.000227,5]
[329562072,1718436673609,-333.0,0.000227,2]
[329562073,1718436673621,-150.0,0.000227,3]
[329562074,1718436673635,-1004.27,0.00022711,2]
[329562075,1718436673649,-209.15905144,0.00022736,2]
[329562076,1718436673661,-4242.29703516,0.00022736,2]
[329562077,1718436673678,-1659.09963243,0.00022736,2]
[329562078,1718436673693,-1280.29194,0.00022737,2]
[329562079,1718436673709,-986.6646128,0.00022737,2]
[329562080,1718436673726,-500.0,0.00022738,3]
[329562081,1718436673756,-150.0,0.00022738,10]
[329562082,1718436673768,-156.21064601,0.00022738,10]
[329562083,1718436673794,-2000.0,0.00022739,2]
[329562084,1718436673807,-200.0,0.00022739,2]
[329562085,1718436673820,-500.0,0.00022739,3]
[329562086,1718436673833,-500.0,0.00022739,3]
[329562087,1718436673852,-500.0,0.00022739,3]
[329562088,1718436673872,-500.0,0.00022739,3]
[329562089,1718436673885,-605.5948622,0.00022739,3]
[329562090,1718436673897,-500.0,0.00022739,3]
[329562091,1718436674024,-622.01,0.00022739,3]
[329562092,1718436674041,-500.0,0.00022739,3]
[329562093,1718436674052,-500.0,0.00022739,3]
[329562094,1718436674064,-500.0,0.00022739,3]
[329562095,1718436674075,-500.0,0.00022739,3]
[329562096,1718436674087,-500.0,0.00022739,3]
[329562097,1718436674098,-500.0,0.00022739,3]
[329562098,1718436674109,-511.17,0.00022739,3]
[329562099,1718436674119,-500.0,0.00022739,3]
[329562100,1718436674130,-500.0,0.00022739,3]
[329562101,1718436674142,-696.63,0.00022739,3]
[329562102,1718436674155,-500.0,0.00022739,3]
[329562103,1718436674165,-500.0,0.00022739,3]
[329562104,1718436674177,-500.0,0.00022739,3]
[329562105,1718436674188,-500.0,0.00022739,3]
[329562106,1718436674200,-513.21,0.00022739,3]
[329562107,1718436674210,-500.0,0.00022739,3]
[329562108,1718436674224,-500.0,0.00022739,3]
[329562109,1718436674236,-500.0,0.00022739,3]
[329562110,1718436674265,-161.66692958,0.00022739,3]
[329562111,1718436674293,-745.49,0.00022739,3]
[329562112,1718436674318,-500.0,0.00022739,3]
[329562113,1718436674330,-500.0,0.00022739,3]
[329562114,1718436674344,-500.0,0.00022739,3]
[329562115,1718436674364,-500.0,0.00022739,3]
[329562116,1718436674382,-725.08,0.00022739,3]
[329562117,1718436674398,-750.91,0.00022739,3]
[329562118,1718436674412,-500.0,0.00022739,3]
[329562119,1718436674448,-500.0,0.00022739,3]
[329562120,1718436674459,-553.92,0.00022739,3]
[329562121,1718436674496,-500.0,0.00022739,3]
[329562122,1718436674520,-500.0,0.00022739,3]
[329562123,1718436674532,-500.0,0.00022739,3]
[329562124,1718436674575,-500.0,0.00022739,3]
[329562125,1718436674586,-500.0,0.00022739,3]
[329562126,1718436674600,-500.0,0.00022739,3]
[329562127,1718436674614,-500.0,0.00022739,3]
[329562128,1718436674646,-500.0,0.00022739,3]
[329562129,1718436674662,-500.0,0.00022739,3]
[329562130,1718436674679,-500.0,0.00022739,3]
[329562131,1718436674692,-678.04,0.00022739,3]
[329562132,1718436674715,-500.0,0.00022739,3]
[329562133,1718436674726,-500.0,0.00022739,3]
[329562134,1718436674738,-500.0,0.00022739,3]
[329562135,1718436674752,-500.0,0.00022739,3]
[329562136,1718436674764,-500.0,0.00022739,3]
[329562137,1718436674784,-500.0,0.00022739,3]
[329562138,1718436674799,-500.0,0.00022739,3]
[329562139,1718436674816,-500.0,0.00022739,3]
[329562140,1718436674832,-500.0,0.00022739,3]
[329562141,1718436674843,-500.0,0.00022739,3]
[329562142,1718436674858,-500.0,0.00022739,3]
[329562143,1718436674872,-500.0,0.00022739,3]
[329562144,1718436674884,-500.0,0.00022739,3]
[329562145,1718436674899,-500.0,0.00022739,3]
[329562146,1718436674913,-500.0,0.00022739,3]
[329562147,1718436674956,-1074.9,0.00022739,3]
[329562148,1718436674977,-528.65,0.00022739,3]
[329562149,1718436674988,-500.0,0.00022739,3]
[329562150,1718436675014,-500.0,0.00022739,3]
[329562151,1718436675031,-500.0,0.00022739,3]
[329562152,1718436675042,-163.33879281,0.00022739,3]
[329562153,1718436675059,-963.02,0.00022739,3]
[329562154,1718436675070,-500.0,0.00022739,3]
[329562155,1718436675084,-500.0,0.00022739,3]
[329562156,1718436675095,-500.0,0.00022739,3]
[329562157,1718436675112,-500.0,0.00022739,3]
[329562158,1718436675122,-500.0,0.00022739,3]
[329562159,1718436675134,-500.0,0.00022739,3]
[329562160,1718436675145,-1033.86,0.00022739,3]
[329562161,1718436675156,-1158.14,0.00022739,3]
[329562162,1718436675173,-500.0,0.00022739,3]
[329562163,1718436675191,-500.0,0.00022739,3]
[329562164,1718436675204,-500.0,0.00022739,3]
[329562165,1718436675216,-2000.0,0.00022739,2]
[329562166,1718436675227,-200.0,0.00022739,2]
[329562167,1718436675246,-551.97,0.00022739,3]
[329562168,1718436675296,-609.55,0.00022739,3]
[329562169,1718436675322,-500.0,0.00022739,3]
[329562170,1718436675334,-500.0,0.00022739,3]
[329562171,1718436675361,-500.0,0.00022739,3]
[329562172,1718436675375,-483.47877494,0.00022739,3]
[329562173,1718436675428,-579.96122506,0.00022739,3]
[329562174,1718436675468,-95.34877494,0.00022739,3]
[329562175,1718436675499,-205.2369075,0.00022739,3]
[329562176,1718436675511,-500.0,0.00022739,3]
[329562177,1718436675522,-6.14383633,0.00022739,3]
[329562178,1718436677266,-169.7,0.000172,2]
[329562179,1718436677281,-348.18949365,0.000205,2]
[329562180,1718436677320,-494.66668932,0.00021917,2]
[329562181,1718436677344,-5.33331068,0.00021917,2]
[329562182,1718436677357,-561.07409048,0.00022191,3]
[329562183,1718436677370,-493.85616367,0.00022739,3]
[329562184,1718436677408,-66.64797609,0.00022739,3]
[329562185,1718436677442,-433.35202391,0.00022739,3]
[329562186,1718436677453,-458.57377168,0.00022739,3]
[329562187,1718436677469,-999.75,0.00022739,3]
[329562188,1718436677487,-660.17,0.00022739,3]
[329562189,1718436677503,-500.0,0.00022739,3]
[329562190,1718436677532,-500.0,0.00022739,3]
[329562191,1718436677562,-500.0,0.00022739,3]
[329562192,1718436677575,-274.41527696,0.00022739,3]
[329562193,1718436677594,-425.82472304,0.00022739,3]
[329562194,1718436677606,-500.0,0.00022739,3]
[329562195,1718436677625,-514.27,0.00022739,3]
[329562196,1718436677642,-500.0,0.00022739,3]
[329562197,1718436677652,-500.0,0.00022739,3]
[329562198,1718436677664,-571.88,0.00022739,3]
[329562199,1718436677674,-512.34,0.00022739,3]
[329562200,1718436677699,-500.0,0.00022739,3]
[329562201,1718436677716,-500.0,0.00022739,3]
[329562202,1718436677744,-860.79,0.00022739,3]
[329562203,1718436677775,-790.89,0.00022739,3]
[329562204,1718436677786,-500.0,0.00022739,3]
[329562205,1718436677797,-500.0,0.00022739,3]
[329562206,1718436677812,-417.46730656,0.00022739,3]
[329562207,1718436677841,-681.52,0.00022739,3]
[329562208,1718436677869,-591.94,0.00022739,3]
[329562209,1718436677881,-500.0,0.00022739,3]
[329562210,1718436677904,-1009.11,0.00022739,3]
[329562211,1718436677929,-673.83,0.00022739,3]
[329562212,1718436677943,-500.0,0.00022739,3]
[329562213,1718436677967,-500.0,0.00022739,3]
[329562214,1718436677979,-542.02,0.00022739,3]
[329562215,1718436677991,-500.0,0.00022739,3]
[329562216,1718436678022,-500.0,0.00022739,3]
[329562217,1718436678048,-500.0,0.00022739,3]
[329562218,1718436678060,-500.0,0.00022739,3]
[329562219,1718436678087,-586.32,0.00022739,3]
[329562220,1718436678117,-500.0,0.00022739,3]
[329562221,1718436678128,-1012.59,0.00022739,3]
[329562222,1718436678142,-705.67,0.00022739,3]
[329562223,1718436678168,-500.0,0.00022739,3]
[329562224,1718436678179,-500.0,0.00022739,3]
[329562225,1718436678191,-500.0,0.00022739,3]
[329562226,1718436678202,-622.45,0.00022739,3]
[329562227,1718436678220,-500.0,0.00022739,3]
[329562228,1718436678232,-500.0,0.00022739,3]
[329562229,1718436678242,-500.0,0.00022739,3]
[329562230,1718436678253,-500.0,0.00022739,3]
[329562231,1718436678262,-715.41,0.00022739,3]
[329562232,1718436678274,-500.0,0.00022739,3]
[329562233,1718436678306,-500.0,0.00022739,3]
[329562234,1718436678320,-500.0,0.00022739,3]
[329562235,1718436678330,-813.42,0.00022739,3]
[329562236,1718436678358,-500.0,0.00022739,3]
[329562237,1718436678370,-772.93,0.00022739,3]
[329562238,1718436678382,-500.0,0.00022739,3]
[329562239,1718436678393,-500.0,0.00022739,3]
[329562240,1718436678403,-500.0,0.00022739,3]
[329562241,1718436678424,-856.32,0.00022739,3]
[329562242,1718436678445,-500.0,0.00022739,3]
[329562243,1718436678455,-500.0,0.00022739,3]
[329562244,1718436678466,-614.12,0.00022739,3]
[329562245,1718436678478,-500.0,0.00022739,3]
[329562246,1718436678504,-171.06839764,0.00022739,3]
[329562247,1718436678524,-500.0,0.00022739,3]
[329562248,1718436678538,-1000.01,0.00022739,3]
[329562249,1718436678581,-913.69,0.00022739,3]
[329562250,1718436678593,-500.0,0.00022739,3]
[329562251,1718436678606,-500.0,0.00022739,3]
[329562252,1718436678620,-306.0884646,0.00022739,3]
[329562253,1718436678639,-500.0,0.00022739,3]
[329562254,1718436678666,-500.0,0.00022739,3]
[329562255,1718436678698,-729.85,0.00022739,3]
[329562256,1718436678712,-500.0,0.00022739,3]
[329562257,1718436678724,-500.0,0.00022739,3]
[329562258,1718436678740,-500.0,0.00022739,3]
[329562259,1718436678753,-500.0,0.00022739,3]
[329562260,1718436678767,-500.0,0.00022739,3]
[329562261,1718436678789,-500.0,0.00022739,3]
[329562262,1718436678808,-901.62,0.00022739,3]
[329562263,1718436678818,-500.0,0.00022739,3]
[329562264,1718436678830,-500.0,0.00022739,3]
[329562265,1718436678850,-500.0,0.00022739,3]
[329562266,1718436678900,-500.0,0.00022739,3]
[329562267,1718436678914,-763.01,0.00022739,3]
[329562268,1718436678950,-500.0,0.00022739,3]
[329562269,1718436678963,-500.0,0.00022739,3]
[329562270,1718436678993,-500.0,0.00022739,3]
[329562271,1718436679005,-500.0,0.00022739,3]
[329562272,1718436679041,-221.17663622,0.00022739,3]
[329562273,1718436679064,-500.0,0.00022739,3]
[329562274,1718436679101,-500.0,0.00022739,3]
[329562275,1718436679160,-643.91,0.00022739,3]
[329562276,1718436679186,-500.0,0.00022739,3]
[329562277,1718436679210,-500.0,0.00022739,3]
[329562278,1718436679230,-518.37,0.00022739,3]
[329562279,1718436679241,-500.0,0.00022739,3]
[329562280,1718436679272,-500.0,0.00022739,3]
[329562281,1718436679287,-500.0,0.00022739,3]
[329562282,1718436679299,-500.0,0.00022739,3]
[329562283,1718436679311,-500.0,0.00022739,3]
[329562284,1718436679336,-500.0,0.00022739,3]
[329562285,1718436679360,-1213.77,0.00022739,3]
[329562286,1718436679371,-500.0,0.00022739,3]
[329562287,1718436679382,-587.67,0.00022739,3]
[329562288,1718436679399,-500.0,0.00022739,3]
[329562289,1718436679424,-500.0,0.00022739,3]
[329562290,1718436679436,-161.33891547,0.00022739,3]
[329562291,1718436679448,-666.4,0.00022739,3]
[329562292,1718436679462,-500.0,0.00022739,3]
[329562293,1718436679502,-500.0,0.00022739,3]
[329562294,1718436679513,-500.0,0.00022739,3]
[329562295,1718436679526,-500.0,0.00022739,3]
[329562296,1718436679543,-500.0,0.00022739,3]
[329562297,1718436679555,-500.0,0.00022739,3]
[329562298,1718436679572,-507.94269585,0.00022739,3]
[329562299,1718436679585,-500.0,0.00022739,3]
[329562300,1718436679607,-500.0,0.00022739,3]
[329562301,1718436679626,-500.0,0.00022739,3]
[329562302,1718436679644,-758.83,0.00022739,3]
[329562303,1718436679659,-500.0,0.00022739,3]
[329562304,1718436679675,-500.0,0.00022739,3]
[329562305,1718436679704,-500.0,0.00022739,3]
[329562306,1718436679723,-154.36285108,0.00022739,3]
[329562307,1718436679747,-500.0,0.00022739,3]
[329562308,1718436679769,-500.0,0.00022739,3]
[329562309,1718436679780,-500.0,0.00022739,3]
[329562310,1718436679792,-500.0,0.00022739,3]
[329562311,1718436679803,-663.75,0.00022739,3]
[329562312,1718436679852,-500.0,0.00022739,3]
[329562313,1718436679874,-500.0,0.00022739,3]
[329562314,1718436679885,-500.0,0.00022739,3]
[329562315,1718436679897,-580.42,0.00022739,3]
[329562316,1718436679921,-500.0,0.00022739,3]
[329562317,1718436679932,-500.0,0.00022739,3]
[329562318,1718436679946,-500.0,0.00022739,3]
[329562319,1718436679957,-477.7085029,0.00022739,3]
[329562320,1718436679986,-129.8114971,0.00022739,3]
[329562321,1718436679996,-360.73249046,0.00022739,3]
[329562322,1718436680009,-139.26750954,0.00022739,3]
[329562323,1718436680022,-500.0,0.00022739,3]
[329562324,1718436680034,-500.0,0.00022739,3]
[329562325,1718436680045,-500.0,0.00022739,3]
[329562326,1718436680058,-7.27414397,0.00022739,3]
[329562327,1718436680080,-492.72585603,0.00022739,3]
[329562328,1718436680201,-805.62,0.00022739,3]
[329562329,1718436680214,-500.0,0.00022739,3]
[329562330,1718436680224,-595.44,0.00022739,3]
[329562331,1718436680241,-500.0,0.00022739,3]
[329562332,1718436680257,-768.98,0.00022739,3]
[329562333,1718436680270,-500.0,0.00022739,3]
[329562334,1718436680295,-500.0,0.00022739,3]
[329562335,1718436680311,-500.0,0.00022739,3]
[329562336,1718436680326,-500.0,0.00022739,3]
[329562337,1718436680343,-706.7,0.00022739,3]
[329562338,1718436680356,-500.0,0.00022739,3]
[329562339,1718436680368,-500.0,0.00022739,3]
[329562340,1718436680379,-500.0,0.00022739,3]
[329562341,1718436680395,-500.0,0.00022739,3]
[329562342,1718436680405,-500.97,0.00022739,3]
[329562343,1718436680417,-444.49326883,0.00022739,3]
[329562344,1718436680431,-55.50673117,0.00022739,3]
[329562345,1718436680448,-500.0,0.00022739,3]
[329562346,1718436680459,-510.11238896,0.00022739,3]
[329562347,1718436680471,-500.0,0.00022739,3]
[329562348,1718436680485,-500.0,0.00022739,3]
[329562349,1718436680519,-500.0,0.00022739,3]
[329562350,1718436680531,-500.0,0.00022739,3]
[329562351,1718436680559,-500.0,0.00022739,3]
[329562352,1718436680588,-251.33096387,0.00022739,3]
[329562353,1718436680685,-248.66903613,0.00022739,3]
[329562354,1718436680703,-500.0,0.00022739,3]
[329562355,1718436680714,-306.32,0.00022739,3]
[329562356,1718436680724,-500.0,0.00022739,3]
[329562357,1718436680736,-500.0,0.00022739,3]
[329562358,1718436680754,-500.0,0.00022739,3]
[329562359,1718436680788,-500.0,0.00022739,3]
[329562360,1718436680800,-706.67,0.00022739,3]
[329562361,1718436680812,-500.0,0.00022739,3]
[329562362,1718436680825,-572.66,0.00022739,3]
[329562363,1718436680841,-500.0,0.00022739,3]
[329562364,1718436680854,-527.26561935,0.00022739,3]
[329562365,1718436680873,-500.0,0.00022739,3]
[329562366,1718436680885,-500.0,0.00022739,3]
[329562367,1718436680898,-617.11,0.00022739,3]
[329562368,1718436680908,-939.07,0.00022739,3]
[329562369,1718436680919,-589.86,0.00022739,3]
[329562370,1718436680949,-500.0,0.00022739,3]
[329562371,1718436680966,-500.0,0.00022739,3]
[329562372,1718436680980,-582.63,0.00022739,3]
[329562373,1718436680993,-454.80065247,0.00022739,3]
[329562374,1718436681004,-663.17,0.00022739,3]
[329562375,1718436681016,-544.0335503,0.00022739,3]
[329562376,1718436681035,-707.58,0.00022739,3]
[329562377,1718436681046,-500.0,0.00022739,3]
[329562378,1718436681062,-500.0,0.00022739,3]
[329562379,1718436681074,-502.93,0.00022739,3]
[329562380,1718436681084,-1582.59,0.00022739,3]
[329562381,1718436681095,-500.0,0.00022739,3]
[329562382,1718436681105,-500.0,0.00022739,3]
[329562383,1718436681116,-500.0,0.00022739,3]
[329562384,1718436681126,-500.0,0.00022739,3]
[329562385,1718436681137,-2141.77,0.00022739,3]
[329562386,1718436681151,-500.0,0.00022739,3]
[329562387,1718436681162,-500.0,0.00022739,3]
[329562388,1718436681188,-500.0,0.00022739,3]
[329562389,1718436681203,-500.0,0.00022739,3]
[329562390,1718436681220,-500.0,0.00022739,3]
[329562391,1718436681231,-500.0,0.00022739,3]
[329562392,1718436681246,-500.0,0.00022739,3]
[329562393,1718436681267,-553.28,0.00022739,3]
[329562394,1718436681281,-500.0,0.00022739,3]
[329562395,1718436681292,-500.0,0.00022739,3]
[329562396,1718436681304,-584.54,0.00022739,3]
[329562397,1718436681325,-500.0,0.00022739,3]
[329562398,1718436681337,-500.0,0.00022739,3]
[329562399,1718436681357,-819.85,0.00022739,3]
[329562400,1718436681368,-500.0,0.00022739,3]
[329562401,1718436681379,-500.0,0.00022739,3]
[329562402,1718436681417,-500.0,0.00022739,3]
[329562403,1718436681431,-500.0,0.00022739,3]
[329562404,1718436681445,-500.0,0.00022739,3]
[329562405,1718436681464,-577.21,0.00022739,3]
[329562406,1718436681489,-500.0,0.00022739,3]
[329562407,1718436681508,-631.57,0.00022739,3]
[329562408,1718436681547,-500.0,0.00022739,3]
[329562409,1718436681560,-516.69431005,0.00022739,3]
[329562410,1718436681573,-500.0,0.00022739,3]
[329562411,1718436681589,-548.32,0.00022739,3]
[329562412,1718436681601,-500.0,0.00022739,3]
[329562413,1718436681612,-500.0,0.00022739,3]
[329562414,1718436681623,-500.0,0.00022739,3]
[329562415,1718436681634,-500.0,0.00022739,3]
[329562416,1718436681650,-1139.04,0.00022739,3]
[329562417,1718436681661,-500.0,0.00022739,3]
[329562418,1718436681672,-500.0,0.00022739,3]
[329562419,1718436681685,-500.0,0.00022739,3]
[329562420,1718436681695,-500.0,0.00022739,3]
[329562421,1718436681706,-500.0,0.00022739,3]
[329562422,1718436681718,-500.0,0.00022739,3]
[329562423,1718436681732,-500.0,0.00022739,3]
[329562424,1718436681744,-697.59,0.00022739,3]
[329562425,1718436681755,-545.8,0.00022739,3]
[329562426,1718436681766,-799.95,0.00022739,3]
[329562427,1718436681777,-500.0,0.00022739,3]
[329562428,1718436681788,-171.76,0.00022739,3]
[329562429,1718436681800,-500.0,0.00022739,3]
[329562430,1718436681811,-460.35,0.00022739,3]
[329562431,1718436681821,-500.0,0.00022739,3]
[329562432,1718436681833,-500.0,0.00022739,3]
[329562433,1718436681846,-500.0,0.00022739,3]
[329562434,1718436681861,-500.0,0.00022739,3]
[329562435,1718436681872,-500.0,0.00022739,3]
[329562436,1718436681882,-758.77,0.00022739,3]
[329562437,1718436681895,-500.0,0.00022739,3]
[329562438,1718436681907,-500.0,0.00022739,3]
[329562439,1718436681917,-743.94,0.00022739,3]
[329562440,1718436681928,-306.58977395,0.00022739,3]
[329562441,1718436681938,-500.0,0.00022739,3]
[329562442,1718436681949,-990.12,0.00022739,3]
[329562443,1718436681959,-500.0,0.00022739,3]
[329562444,1718436681970,-500.0,0.00022739,3]
[329562445,1718436681983,-500.0,0.00022739,3]
[329562446,1718436681995,-500.0,0.00022739,3]
[329562447,1718436682007,-500.0,0.00022739,3]
[329562448,1718436682019,-500.0,0.00022739,3]
[329562449,1718436682032,-500.0,0.00022739,3]
[329562450,1718436682043,-500.0,0.00022739,3]
[329562451,1718436682054,-500.0,0.00022739,3]
[329562452,1718436682074,-624.34,0.00022739,3]
[329562453,1718436682088,-500.0,0.00022739,3]
[329562454,1718436682099,-541.56,0.00022739,3]
[329562455,1718436682110,-500.0,0.00022739,3]
[329562456,1718436682121,-503.8,0.00022739,3]
[329562457,1718436682132,-685.0,0.00022739,3]
[329562458,1718436682146,-500.0,0.00022739,3]
[329562459,1718436682158,-2511.61,0.00022739,3]
[329562460,1718436682171,-500.0,0.00022739,3]
[329562461,1718436682183,-655.35,0.00022739,3]
[329562462,1718436682195,-500.0,0.00022739,3]
[329562463,1718436682207,-500.0,0.00022739,3]
[329562464,1718436682221,-500.0,0.00022739,3]
[329562465,1718436682232,-1322.77,0.00022739,3]
[329562466,1718436682248,-500.0,0.00022739,3]